Date of Transaction,Department,Beneficiary,Amount,Summary of Purpose,Merchant Category
06 October 2014,"Children, Schools & Communities",ASDA STORES 7134,60.97,GROCERY STORES,GENERAL RETAIL AND WHOLESALE
06 October 2014,Residents & Visitor Services,Amazon EU,12.04,OTHER DIRECT MARKETERS,MAIL ORDER / DIRECT SELLING
06 October 2014,"Children, Schools & Communities",WWW.POSTURITE.CO.UK,300.00,COMMERCIAL FURNITURE,OFFICE STATIONERY EQUIPMENT AND SUPPLIES
07 October 2014,"Children, Schools & Communities",TRAINLINE.COM,46.41,PASSENGER RAILWAYS,TRAVEL
07 October 2014,Commercial Services,POST OFFICE COUNTER,53.20,POSTAGE STAMPS,MAIL AND COURIER SERVICES
07 October 2014,Commercial Services,MBL SEMINARS,118.80,SCHOOLS - DEFAULT,TRAINING AND EDUCATIONAL
07 October 2014,Safeguarding & Wellbeing,MANOR LODGE GUEST HOUSE,60.00,HOTELS/MOTELS/RESORTS,HOTELS AND ACCOMMODATION
08 October 2014,Residents & Visitor Services,FGW WEBSALES,278.00,PASSENGER RAILWAYS,TRAVEL
08 October 2014,Residents & Visitor Services,FGW WEBSALES,11.40,PASSENGER RAILWAYS,TRAVEL
08 October 2014,Residents & Visitor Services,HOBBYCRAFT,46.00,ARTIST/CRAFT SHOPS,GENERAL RETAIL AND WHOLESALE
08 October 2014,"Children, Schools & Communities",TRAINLINE.COM,121.38,PASSENGER RAILWAYS,TRAVEL
08 October 2014,Residents & Visitor Services,FGW WEBSALES,25.60,PASSENGER RAILWAYS,TRAVEL
09 October 2014,Community Safety,PAYPAL *IARS,306.50,CHARITABLE/SOC SERVICE ORGS,CLUBS/ASSOCIATIONS/ORGANISATIONS
09 October 2014,Community Safety,ARGOS DIRECT,233.94,CATALOG MERCHANT,MAIL ORDER / DIRECT SELLING
09 October 2014,Residents & Visitor Services,FGW WEBSALES,189.00,PASSENGER RAILWAYS,TRAVEL
09 October 2014,"Children, Schools & Communities",PREMIER INN44521725,94.00,PREMIER TRAVEL INNS,HOTELS AND ACCOMMODATION
09 October 2014,"Children, Schools & Communities",PREMIER INN44521725,94.00,PREMIER TRAVEL INNS,HOTELS AND ACCOMMODATION
10 October 2014,Commercial Services,FGW WEBSALES,17.40,PASSENGER RAILWAYS,TRAVEL
10 October 2014,Financial Services - Corporate,COMPANIES HOUSE,13.00,GOV'T SERV - DEFAULT,STATUTORY BODIES
13 October 2014,"Children, Schools & Communities",ASDA STORES 7134,47.81,GROCERY STORES,GENERAL RETAIL AND WHOLESALE
13 October 2014,Tor Bay Harbour Authority,PAYPAL *MAR INT LTD,204.00,BOOK STORES,BOOKS AND PERIODICALS
13 October 2014,Residents & Visitor Services,STATIONERY OFFICE BOOK,26.00,CATALOG MERCHANT,MAIL ORDER / DIRECT SELLING
14 October 2014,Residents & Visitor Services,FGW WEBSALES,88.20,PASSENGER RAILWAYS,TRAVEL
14 October 2014,Residents & Visitor Services,PAYPAL *READREADING,30.78,CHARITABLE/SOC SERVICE ORGS,CLUBS/ASSOCIATIONS/ORGANISATIONS
14 October 2014,Residents & Visitor Services,WWW.CARTRIDGESAVE.CO.U,76.43,STATIONERY STORES,OFFICE STATIONERY EQUIPMENT AND SUPPLIES
14 October 2014,Financial Services - Children,Amazon EU,16.15,OTHER DIRECT MARKETERS,MAIL ORDER / DIRECT SELLING
14 October 2014,Spatial Planning,GREENHAM TRADING LTD,69.53,HARDWARE EQUIPMENT/SUPPLIES,MISCELLANEOUS INDUSTRIAL/COMMERCIAL SUPPLIES
14 October 2014,Spatial Planning,GREENHAM TRADING LTD,40.19,HARDWARE EQUIPMENT/SUPPLIES,MISCELLANEOUS INDUSTRIAL/COMMERCIAL SUPPLIES
14 October 2014,Spatial Planning,WWW.MILLETS.CO.UK,60.00,SPORTING GOODS STORES,GENERAL RETAIL AND WHOLESALE
14 October 2014,Safeguarding & Wellbeing,PREMIER INN44011625,81.75,PREMIER TRAVEL INNS,HOTELS AND ACCOMMODATION
14 October 2014,Safeguarding & Wellbeing,PREMIER INN44521025,72.75,PREMIER TRAVEL INNS,HOTELS AND ACCOMMODATION
14 October 2014,Safeguarding & Wellbeing,PREMIER INN 44536035,66.75,PREMIER TRAVEL INNS,HOTELS AND ACCOMMODATION
15 October 2014,"Children, Schools & Communities",CURRYS ONLINE,619.97,ELECTRONICS SALES,GENERAL RETAIL AND WHOLESALE
15 October 2014,Community Safety,TRAINLINE.COM,234.50,PASSENGER RAILWAYS,TRAVEL
15 October 2014,"Children, Schools & Communities",MARSTON BOOK LTD,13.14,OTHER DIRECT MARKETERS,MAIL ORDER / DIRECT SELLING
15 October 2014,"Children, Schools & Communities",PREMIER INN44023605,79.00,PREMIER TRAVEL INNS,HOTELS AND ACCOMMODATION
16 October 2014,"Children, Schools & Communities",TRAINLINE.COM,53.75,PASSENGER RAILWAYS,TRAVEL
16 October 2014,Commercial Services,FGW WEBSALES,65.00,PASSENGER RAILWAYS,TRAVEL
16 October 2014,Spatial Planning,WWW.MILLETS.CO.UK,80.00,SPORTING GOODS STORES,GENERAL RETAIL AND WHOLESALE
16 October 2014,"Children, Schools & Communities",PREMIER INN 44536035,62.00,PREMIER TRAVEL INNS,HOTELS AND ACCOMMODATION
17 October 2014,Residents & Visitor Services,FGW WEBSALES,123.00,PASSENGER RAILWAYS,TRAVEL
17 October 2014,Safeguarding & Wellbeing,ABBEY HILL HOTEL,95.00,HOTELS/MOTELS/RESORTS,HOTELS AND ACCOMMODATION
17 October 2014,Safeguarding & Wellbeing,ABBEY HILL HOTEL,95.00,HOTELS/MOTELS/RESORTS,HOTELS AND ACCOMMODATION
20 October 2014,"Children, Schools & Communities",ASDA STORES 7134,61.22,GROCERY STORES,GENERAL RETAIL AND WHOLESALE
20 October 2014,Community Safety,IBIS LONDON BLACKFRIARS,173.95,HOTELS/MOTELS/RESORTS,HOTELS AND ACCOMMODATION
20 October 2014,Residents & Visitor Services,FGW WEBSALES,116.00,PASSENGER RAILWAYS,TRAVEL
20 October 2014,Residents & Visitor Services,Amazon *Mktplce EU-UK,2.99,BOOK STORES,BOOKS AND PERIODICALS
20 October 2014,Residents & Visitor Services,Amazon *Mktplce EU-UK,37.98,BOOK STORES,BOOKS AND PERIODICALS
20 October 2014,Commercial Services,FGW WEBSALES,176.30,PASSENGER RAILWAYS,TRAVEL
20 October 2014,"Children, Schools & Communities",TRAVELODGE WEBSITE,66.00,TRAVELODGE,HOTELS AND ACCOMMODATION
21 October 2014,"Children, Schools & Communities",TRAINLINE.COM,194.41,PASSENGER RAILWAYS,TRAVEL
21 October 2014,Community Safety,Amazon EU,70.71,OTHER DIRECT MARKETERS,MAIL ORDER / DIRECT SELLING
21 October 2014,Residents & Visitor Services,FGW TOTNES,5.50,AUTO PARKING LOTS/GARAGES,TRAVEL
21 October 2014,Residents & Visitor Services,CAFE IN THE CRYPT,7.05,BOOK STORES,BOOKS AND PERIODICALS
22 October 2014,Community Safety,Amazon *Mktplce EU-UK,6.20,BOOK STORES,BOOKS AND PERIODICALS
22 October 2014,Residents & Visitor Services,SUSANS FLOWER SHOP,35.00,FLORISTS,ESTATE AND GARDEN SERVICES
22 October 2014,Commercial Services,WWW.THELAWSOCIETY.ORG,"2,464.00",MEMBER ORGANIZATIONS - DEF,CLUBS/ASSOCIATIONS/ORGANISATIONS
22 October 2014,Spatial Planning,FGW WEBSALES,245.50,PASSENGER RAILWAYS,TRAVEL
22 October 2014,Spatial Planning,FGW WEBSALES,265.50,PASSENGER RAILWAYS,TRAVEL
22 October 2014,"Children, Schools & Communities",NATIONAL EXPRESS LIMITED,29.60,BUS LINES/CHARTER/TOUR,TRAVEL
22 October 2014,Public Health Commissioning,CIEH LIMITED,99.00,MEMBER ORGANIZATIONS - DEF,CLUBS/ASSOCIATIONS/ORGANISATIONS
23 October 2014,Residents & Visitor Services,Amazon *Mktplce EU-UK,9.79,BOOK STORES,BOOKS AND PERIODICALS
23 October 2014,Tor Bay Harbour Authority,EBAY INC.,33.03,BUSINESS SERVICES - DEFAULT,MISCELLANEOUS INDUSTRIAL/COMMERCIAL SUPPLIES
23 October 2014,Information Services,Amazon *Mktplce EU-UK,39.98,BOOK STORES,BOOKS AND PERIODICALS
23 October 2014,Information Services,APPLE ONLINE STORE GBP,25.00,ELECTRONICS SALES,GENERAL RETAIL AND WHOLESALE
23 October 2014,Information Services,APPLE ONLINE STORE GBP,569.00,ELECTRONICS SALES,GENERAL RETAIL AND WHOLESALE
23 October 2014,Information Services,PAYMENTS@XAMARIN.COM,643.08,COMPUTER SOFTWARE STORES,COMPUTER EQUIPMENT & SERVICES
24 October 2014,Residents & Visitor Services,Amazon *Mktplce EU-UK,19.02,BOOK STORES,BOOKS AND PERIODICALS
24 October 2014,Residents & Visitor Services,Amazon *Mktplce EU-UK,20.24,BOOK STORES,BOOKS AND PERIODICALS
24 October 2014,Residents & Visitor Services,Amazon *Mktplce EU-UK,18.59,BOOK STORES,BOOKS AND PERIODICALS
24 October 2014,Commercial Services,CENTRAL LAW,486.00,COLLEGES/UNIV/JC/PROFESSION,TRAINING AND EDUCATIONAL
24 October 2014,Commercial Services,FGW WEBSALES,119.00,PASSENGER RAILWAYS,TRAVEL
24 October 2014,Residents & Visitor Services,FGW WEBSALES,106.20,PASSENGER RAILWAYS,TRAVEL
24 October 2014,Spatial Planning,THE FAIRTRADE FOUN,90.00,CHARITABLE/SOC SERVICE ORGS,CLUBS/ASSOCIATIONS/ORGANISATIONS
24 October 2014,Spatial Planning,WWW.TRAIDCRAFT.CO.UK,40.99,CATALOG MERCHANT,MAIL ORDER / DIRECT SELLING
24 October 2014,Safeguarding & Wellbeing,PARKHOLIDAYS.COM,234.00,TRAILER PARKS/CAMP SITES,LEISURE ACTIVITIES
24 October 2014,Safeguarding & Wellbeing,VODAFONE LIMITED,40.00,PHONE SERV/EQUIP UTILITY,TELECOMMUNICATION SERVICES
24 October 2014,Safeguarding & Wellbeing,VODAFONE LIMITED,35.00,PHONE SERV/EQUIP UTILITY,TELECOMMUNICATION SERVICES
24 October 2014,Safeguarding & Wellbeing,PREMIER INN44521665,107.00,PREMIER TRAVEL INNS,HOTELS AND ACCOMMODATION
25 October 2014,Commercial Services,MARKS & SPENCER,55.00,GROCERY STORES,GENERAL RETAIL AND WHOLESALE
26 October 2014,Tor Bay Harbour Authority,TRAINLINE.COM,105.77,PASSENGER RAILWAYS,TRAVEL
26 October 2014,Tor Bay Harbour Authority,TRAINLINE.COM,83.13,PASSENGER RAILWAYS,TRAVEL
26 October 2014,Commercial Services,T K MAXX,44.99,VARIETY STORES,GENERAL RETAIL AND WHOLESALE
27 October 2014,"Children, Schools & Communities",ASDA HOME SHOPPING CAR,51.18,GROCERY STORES,GENERAL RETAIL AND WHOLESALE
27 October 2014,Residents & Visitor Services,IPC MEDIA/SUBS ACC,87.99,BOOKS/PERIODICALS/NEWSPAPERS,BOOKS AND PERIODICALS
27 October 2014,Residents & Visitor Services,FIRST GREATER WESTERN,3.90,PASSENGER RAILWAYS,TRAVEL
28 October 2014,Spatial Planning,ALLIANCE DISPOSABLES,45.28,CATERERS,CATERING AND CATERING SUPPLIES
28 October 2014,Spatial Planning,ALLIANCE DISPOSABLES,103.72,CATERERS,CATERING AND CATERING SUPPLIES
28 October 2014,Financial Services - Children,PREMIER INN 44536035,69.75,PREMIER TRAVEL INNS,HOTELS AND ACCOMMODATION
28 October 2014,Safeguarding & Wellbeing,TRAVELODGE WEBSITE,68.00,TRAVELODGE,HOTELS AND ACCOMMODATION
29 October 2014,"Children, Schools & Communities",TRAINLINE.COM,138.41,PASSENGER RAILWAYS,TRAVEL
29 October 2014,Community Safety,WWW.UJCLUB.CO.UK,42.50,HOTELS/MOTELS/RESORTS,HOTELS AND ACCOMMODATION
29 October 2014,Community Safety,PLYMOUTH CC CAS/SE,120.00,GOV'T SERV - DEFAULT,STATUTORY BODIES
29 October 2014,Community Safety,TRAINLINE.COM,73.13,PASSENGER RAILWAYS,TRAVEL
29 October 2014,Community Safety,TRAINLINE.COM,177.99,PASSENGER RAILWAYS,TRAVEL
29 October 2014,Community Safety,CIEH,270.00,MEMBER ORGANIZATIONS - DEF,CLUBS/ASSOCIATIONS/ORGANISATIONS
29 October 2014,"Children, Schools & Communities",TVLICENSING.CO.UK,145.50,MGMT/CONSULT/PUBLIC REL SER,PROFESSIONAL SERVICES
29 October 2014,Spatial Planning,ALLIANCE DISPOSABLES,24.00,CATERERS,CATERING AND CATERING SUPPLIES
29 October 2014,Spatial Planning,WWW.SPOCE.COM,838.80,COLLEGES/UNIV/JC/PROFESSION,TRAINING AND EDUCATIONAL
29 October 2014,Spatial Planning,FGW WEBSALES,135.00,PASSENGER RAILWAYS,TRAVEL
30 October 2014,"Children, Schools & Communities",TRAINLINE.COM,134.20,PASSENGER RAILWAYS,TRAVEL
30 October 2014,"Children, Schools & Communities",TRAINLINE.COM,-37.80,PASSENGER RAILWAYS,TRAVEL
30 October 2014,"Children, Schools & Communities",TRAINLINE.COM,-76.40,PASSENGER RAILWAYS,TRAVEL
30 October 2014,Community Safety,MYMEMORYLTD,18.00,ELECTRONICS SALES,GENERAL RETAIL AND WHOLESALE
30 October 2014,Spatial Planning,WWW.TORBAY.GOV.UK,42.50,GOV'T SERV - DEFAULT,STATUTORY BODIES
30 October 2014,Spatial Planning,FGW WEBSALES,26.70,PASSENGER RAILWAYS,TRAVEL
30 October 2014,Spatial Planning,FGW WEBSALES,36.00,PASSENGER RAILWAYS,TRAVEL
31 October 2014,Residents & Visitor Services,Amazon EU,9.00,OTHER DIRECT MARKETERS,MAIL ORDER / DIRECT SELLING
31 October 2014,Residents & Visitor Services,Amazon EU,9.00,OTHER DIRECT MARKETERS,MAIL ORDER / DIRECT SELLING
31 October 2014,Community Safety,Amazon EU,15.98,OTHER DIRECT MARKETERS,MAIL ORDER / DIRECT SELLING
31 October 2014,Residents & Visitor Services,LINKEDIN-146*6802053,233.64,CONTINUITY/SUBSCRIPTION MERCHT,MAIL ORDER / DIRECT SELLING
31 October 2014,Residents & Visitor Services,WWW.CARTRIDGESAVE.CO.U,90.27,STATIONERY STORES,OFFICE STATIONERY EQUIPMENT AND SUPPLIES
31 October 2014,"Children, Schools & Communities",FILMBANK PVSL ACC,112.00,THEATRICAL PRODUCERS,LEISURE ACTIVITIES
31 October 2014,Commercial Services,FGW WEBSALES,8.20,PASSENGER RAILWAYS,TRAVEL
31 October 2014,Commercial Services,FGW WEBSALES,11.40,PASSENGER RAILWAYS,TRAVEL
31 October 2014,Commercial Services,FGW WEBSALES,43.50,PASSENGER RAILWAYS,TRAVEL
31 October 2014,Commercial Services,FGW WEBSALES,65.00,PASSENGER RAILWAYS,TRAVEL
31 October 2014,Commercial Services,Amazon *Mktplce EU-UK,35.03,MISC SPECIALITY RETAIL,GENERAL RETAIL AND WHOLESALE
31 October 2014,Safeguarding & Wellbeing,OLD MANOR HOUSE KEYNSH,89.00,HOTELS/MOTELS/RESORTS,HOTELS AND ACCOMMODATION
02 November 2014,Residents & Visitor Services,Amazon EU,70.96,OTHER DIRECT MARKETERS,MAIL ORDER / DIRECT SELLING
03 November 2014,"Children, Schools & Communities",ASDA HOME SHOPPING CAR,61.41,GROCERY STORES,GENERAL RETAIL AND WHOLESALE
03 November 2014,Safeguarding & Wellbeing,TRAVELODGE WEBSITE,54.00,TRAVELODGE,HOTELS AND ACCOMMODATION
04 November 2014,Residents & Visitor Services,WWW.CARTRIDGESAVE.CO.U,65.29,STATIONERY STORES,OFFICE STATIONERY EQUIPMENT AND SUPPLIES
04 November 2014,Spatial Planning,Amazon *Mktplce EU-UK,79.99,BOOK STORES,BOOKS AND PERIODICALS
04 November 2014,Financial Services - Children,HOLIDAY COTTAGES,341.70,TRAILER PARKS/CAMP SITES,LEISURE ACTIVITIES
05 November 2014,Community Safety,TRAVELODGE WEBSITE,48.65,TRAVELODGE,HOTELS AND ACCOMMODATION
05 November 2014,Commercial Services,PAYPAL *LAVENHAMGRO,31.06,PROFESSIONAL SERVICES - DEF,PROFESSIONAL SERVICES
05 November 2014,Tor Bay Harbour Authority,WP-SHIPWRECKED FIS,17.00,"GIFT, CARD, NOVELTY STORES",GENERAL RETAIL AND WHOLESALE
06 November 2014,Residents & Visitor Services,RIVIERA INTL CONF CTRE,54.20,RESTAURANTS,RESTAURANTS AND BARS
06 November 2014,Residents & Visitor Services,BOOKER LIMITED PAIGNTON,99.42,CATERERS,CATERING AND CATERING SUPPLIES
06 November 2014,Financial Services - Corporate,FGW WEBSALES,25.60,PASSENGER RAILWAYS,TRAVEL
06 November 2014,Spatial Planning,PAYPAL *CINFO,64.00,PROFESSIONAL SERVICES - DEF,PROFESSIONAL SERVICES
06 November 2014,Financial Services - Children,REZARE FARMHOUSE B&B,108.00,HOTELS/MOTELS/RESORTS,HOTELS AND ACCOMMODATION
06 November 2014,Financial Services - Children,WVR.UK (HOSEASONS GP),323.31,TRAVEL AGENCIES,TRAVEL
06 November 2014,"Children, Schools & Communities",PREMIER INN 44536035,56.00,PREMIER TRAVEL INNS,HOTELS AND ACCOMMODATION
07 November 2014,Residents & Visitor Services,FGW WEBSALES,137.90,PASSENGER RAILWAYS,TRAVEL
07 November 2014,Information Services,Amazon *Mktplce EU-UK,39.98,BOOK STORES,BOOKS AND PERIODICALS
07 November 2014,Information Services,APPLE ONLINE STORE GBP,59.00,ELECTRONICS SALES,GENERAL RETAIL AND WHOLESALE
07 November 2014,"Children, Schools & Communities",COUNTRY COMFORTS LTD,89.00,HOTELS/MOTELS/RESORTS,HOTELS AND ACCOMMODATION
08 November 2014,Residents & Visitor Services,Amazon EU,9.00,OTHER DIRECT MARKETERS,MAIL ORDER / DIRECT SELLING
08 November 2014,Residents & Visitor Services,BOOKER LIMITED PAIGNTON,35.06,CATERERS,CATERING AND CATERING SUPPLIES
09 November 2014,Residents & Visitor Services,Amazon EU,9.00,OTHER DIRECT MARKETERS,MAIL ORDER / DIRECT SELLING
09 November 2014,Residents & Visitor Services,Amazon EU,9.00,OTHER DIRECT MARKETERS,MAIL ORDER / DIRECT SELLING
09 November 2014,Tor Bay Harbour Authority,TRAINLINE.COM,96.80,PASSENGER RAILWAYS,TRAVEL
09 November 2014,Residents & Visitor Services,Amazon *Mktplce EU-UK,55.80,BOOK STORES,BOOKS AND PERIODICALS
10 November 2014,"Children, Schools & Communities",ASDA HOME SHOPPING,48.78,GROCERY STORES,GENERAL RETAIL AND WHOLESALE
10 November 2014,Residents & Visitor Services,FGW WEBSALES,31.60,PASSENGER RAILWAYS,TRAVEL
11 November 2014,"Children, Schools & Communities",TRAINLINE.COM,150.14,PASSENGER RAILWAYS,TRAVEL
11 November 2014,Residents & Visitor Services,Amazon EU,-0.01,OTHER DIRECT MARKETERS,MAIL ORDER / DIRECT SELLING
11 November 2014,Residents & Visitor Services,Amazon EU,-0.01,OTHER DIRECT MARKETERS,MAIL ORDER / DIRECT SELLING
11 November 2014,Commercial Services,Amazon EU,134.34,OTHER DIRECT MARKETERS,MAIL ORDER / DIRECT SELLING
11 November 2014,Safeguarding & Wellbeing,WWW.FLYBE.CODT930W,203.93,"AIRLINES, AIR CARRIERS",TRAVEL
12 November 2014,Information Services,APPLE ONLINE STORE GBP,24.75,ELECTRONICS SALES,GENERAL RETAIL AND WHOLESALE
12 November 2014,Spatial Planning,OXFAM F3237,95.78,CHARITABLE/SOC SERVICE ORGS,CLUBS/ASSOCIATIONS/ORGANISATIONS
12 November 2014,Spatial Planning,WM MORRISONS STORE,12.68,GROCERY STORES,GENERAL RETAIL AND WHOLESALE
12 November 2014,"Children, Schools & Communities",CAMBRIDGE LODGE,45.00,HOTELS/MOTELS/RESORTS,HOTELS AND ACCOMMODATION
12 November 2014,Safeguarding & Wellbeing,WWW.FLYBE.COEE6J2F,162.99,"AIRLINES, AIR CARRIERS",TRAVEL
13 November 2014,Community Safety,WWW.HPA.ORG.UK,90.00,MISC PUBLISHING & PRINTING,PRINT AND ADVERTISING
13 November 2014,Residents & Visitor Services,V.BRITAINSHOP GB,11.75,TOURIST ATTRACTIONS AND XHBT,LEISURE ACTIVITIES
13 November 2014,Residents & Visitor Services,FGW WEBSALES,87.00,PASSENGER RAILWAYS,TRAVEL
13 November 2014,Information Services,Amazon *Mktplce EU-UK,10.95,BOOK STORES,BOOKS AND PERIODICALS
13 November 2014,Safeguarding & Wellbeing,TRAVELODGE WEBSITE,44.00,TRAVELODGE,HOTELS AND ACCOMMODATION
14 November 2014,Community Safety,FIRST INFO LTD- TE,389.00,PASSENGER RAILWAYS,TRAVEL
14 November 2014,Residents & Visitor Services,NEXT 0426 TORQUAY,140.00,FAMILY CLOTHING STORES,GENERAL RETAIL AND WHOLESALE
14 November 2014,Residents & Visitor Services,DUNELM LTD,19.99,DRAPERY & UPHOLSTERY STORES,GENERAL RETAIL AND WHOLESALE
14 November 2014,Financial Services - Corporate,FGW WEBSALES,8.20,PASSENGER RAILWAYS,TRAVEL
14 November 2014,Spatial Planning,WWW.GAYNORS.CO.UK,94.96,SPORTS/RIDING APPAREL STORE,GENERAL RETAIL AND WHOLESALE
14 November 2014,Safeguarding & Wellbeing,RAMADA PLAZA WREXHAM,80.00,HOTELS/MOTELS/RESORTS,HOTELS AND ACCOMMODATION
14 November 2014,Safeguarding & Wellbeing,PREMIER INN 44536035,63.00,PREMIER TRAVEL INNS,HOTELS AND ACCOMMODATION
15 November 2014,Residents & Visitor Services,Amazon *Mktplce EU-UK,69.95,BOOK STORES,BOOKS AND PERIODICALS
15 November 2014,Financial Services - Children,NATIONAL EXPRESS LIMITED,63.80,BUS LINES/CHARTER/TOUR,TRAVEL
17 November 2014,"Children, Schools & Communities",ASDA HOME SHOPPING,51.54,GROCERY STORES,GENERAL RETAIL AND WHOLESALE
17 November 2014,Residents & Visitor Services,Amazon *Mktplce EU-UK,43.98,BOOK STORES,BOOKS AND PERIODICALS
17 November 2014,Residents & Visitor Services,NEXT 0426 TORQUAY,32.00,FAMILY CLOTHING STORES,GENERAL RETAIL AND WHOLESALE
17 November 2014,Residents & Visitor Services,CURRYS,20.99,ELECTRONICS SALES,GENERAL RETAIL AND WHOLESALE
17 November 2014,Residents & Visitor Services,WWW.WEATHERWRITER.COM,82.14,MISC SPECIALITY RETAIL,GENERAL RETAIL AND WHOLESALE
17 November 2014,Information Services,DRI *PINNACLESY,49.95,COMPUTER SOFTWARE STORES,COMPUTER EQUIPMENT & SERVICES
17 November 2014,"Children, Schools & Communities",BUTE COURT HOTEL,80.00,HOTELS/MOTELS/RESORTS,HOTELS AND ACCOMMODATION
17 November 2014,Safeguarding & Wellbeing,WWW.EVIIVO.COM,61.00,BUSINESS SERVICES - DEFAULT,MISCELLANEOUS INDUSTRIAL/COMMERCIAL SUPPLIES
17 November 2014,"Children, Schools & Communities",PREMIER INN44029180,65.75,PREMIER TRAVEL INNS,HOTELS AND ACCOMMODATION
18 November 2014,Tor Bay Harbour Authority,THE VICTORY SERVIC,108.00,HOTELS/MOTELS/RESORTS,HOTELS AND ACCOMMODATION
18 November 2014,Procurrment Team,ARGOS LTD,6.99,DISCOUNT STORES,GENERAL RETAIL AND WHOLESALE
18 November 2014,Residents & Visitor Services,FGW WEBSALES,11.40,PASSENGER RAILWAYS,TRAVEL
18 November 2014,Financial Services - Corporate,PREMIER INN44027510,-23.99,PREMIER TRAVEL INNS,HOTELS AND ACCOMMODATION
18 November 2014,Residents & Visitor Services,FGW WEBSALES,197.70,PASSENGER RAILWAYS,TRAVEL
18 November 2014,Residents & Visitor Services,FGW WEBSALES,242.40,PASSENGER RAILWAYS,TRAVEL
18 November 2014,Information Services,Amazon *Mktplce EU-UK,39.98,BOOK STORES,BOOKS AND PERIODICALS
18 November 2014,Information Services,Amazon *Mktplce EU-UK,39.98,BOOK STORES,BOOKS AND PERIODICALS
18 November 2014,Financial Services - Children,WWW.SWI.CO.UK,117.50,SPORTS/RIDING APPAREL STORE,GENERAL RETAIL AND WHOLESALE
19 November 2014,Residents & Visitor Services,STATIONERY OFFICE BOOK,50.00,CATALOG MERCHANT,MAIL ORDER / DIRECT SELLING
19 November 2014,"Children, Schools & Communities",TRAINLINE.COM,70.48,PASSENGER RAILWAYS,TRAVEL
20 November 2014,Community Safety,CITB,30.00,COLLEGES/UNIV/JC/PROFESSION,TRAINING AND EDUCATIONAL
20 November 2014,Tor Bay Harbour Authority,PESTANA SOUTH BEACH HOTEL,"1,522.01",HOTELS/MOTELS/RESORTS,HOTELS AND ACCOMMODATION
20 November 2014,Residents & Visitor Services,1&1 INTERNET LIMITED,17.96,ELECTRONIC COMMERCE/INFO. SERVI,MISCELLANEOUS
20 November 2014,Residents & Visitor Services,FGW WEBSALES,116.90,PASSENGER RAILWAYS,TRAVEL
20 November 2014,Financial Services - Children,Amazon *Mktplce EU-UK,47.90,BOOK STORES,BOOKS AND PERIODICALS
21 November 2014,Residents & Visitor Services,Amazon EU,27.75,OTHER DIRECT MARKETERS,MAIL ORDER / DIRECT SELLING
21 November 2014,Safeguarding & Wellbeing,WWW.GOSH.ORG,54.95,COMBINATION CATALOG & RETAIL,GENERAL RETAIL AND WHOLESALE
21 November 2014,"Children, Schools & Communities",PREMIER INN44023605,-79.00,PREMIER TRAVEL INNS,HOTELS AND ACCOMMODATION
23 November 2014,Tor Bay Harbour Authority,EBAY EUROPE SARL,120.98,BUSINESS SERVICES - DEFAULT,MISCELLANEOUS INDUSTRIAL/COMMERCIAL SUPPLIES
24 November 2014,"Children, Schools & Communities",ASDA HOME SHOPPING,40.63,GROCERY STORES,GENERAL RETAIL AND WHOLESALE
24 November 2014,Spatial Planning,WWW.7DAYSHOP.COM,16.98,DEPARTMENT STORES,GENERAL RETAIL AND WHOLESALE
24 November 2014,Residents & Visitor Services,BOOKER LIMITED PAIGNTON,261.98,CATERERS,CATERING AND CATERING SUPPLIES
24 November 2014,Commercial Services,Amazon EU,28.17,OTHER DIRECT MARKETERS,MAIL ORDER / DIRECT SELLING
24 November 2014,Residents & Visitor Services,UPPER CRUST,5.49,FAST FOOD RESTAURANTS,RESTAURANTS AND BARS
24 November 2014,Residents & Visitor Services,M&S SIMPLY FOOD - SSP,2.70,MISC FOOD STORES - DEFAULT,CATERING AND CATERING SUPPLIES
24 November 2014,Residents & Visitor Services,FGW TOTNES,5.50,AUTO PARKING LOTS/GARAGES,TRAVEL
24 November 2014,"Children, Schools & Communities",123-REG.CO.UK,8.38,ELECTRONIC COMMERCE/INFO. SERVI,MISCELLANEOUS
25 November 2014,Residents & Visitor Services,SAINSBURY'S S/MKT,194.00,GROCERY STORES,GENERAL RETAIL AND WHOLESALE
25 November 2014,"Children, Schools & Communities",NATIONAL EXPRESS LIMITED,46.50,BUS LINES/CHARTER/TOUR,TRAVEL
25 November 2014,Public Health Commissioning,PAYPAL *SHEU,25.00,SCHOOLS - DEFAULT,TRAINING AND EDUCATIONAL
26 November 2014,Community Safety,Amazon *Mktplce EU-UK,32.97,BOOK STORES,BOOKS AND PERIODICALS
26 November 2014,Spatial Planning,Amazon *Mktplce EU-UK,5.99,BOOK STORES,BOOKS AND PERIODICALS
26 November 2014,Residents & Visitor Services,SAINSBURY'S S/MKT,139.00,GROCERY STORES,GENERAL RETAIL AND WHOLESALE
26 November 2014,Commercial Services,POST OFFICE COUNTER,5.45,POSTAGE STAMPS,MAIL AND COURIER SERVICES
26 November 2014,Information Services,Amazon *Mktplce EU-UK,301.90,BOOK STORES,BOOKS AND PERIODICALS
27 November 2014,Community Safety,TRAINLINE.COM,27.90,PASSENGER RAILWAYS,TRAVEL
27 November 2014,Commercial Services,ARGOS LTD,18.98,DISCOUNT STORES,GENERAL RETAIL AND WHOLESALE
27 November 2014,Spatial Planning,FGW WEBSALES,80.50,PASSENGER RAILWAYS,TRAVEL
27 November 2014,Financial Services - Children,PREMIER INN 44536535,78.00,RESTAURANTS,RESTAURANTS AND BARS
27 November 2014,"Children, Schools & Communities",PROMOTIONAL PROD,99.94,MISC APPAREL/ACCESS SHOPS,GENERAL RETAIL AND WHOLESALE
28 November 2014,Residents & Visitor Services,FGW WEBSALES,123.00,PASSENGER RAILWAYS,TRAVEL
28 November 2014,Commercial Services,MBL SEMINARS,118.80,SCHOOLS - DEFAULT,TRAINING AND EDUCATIONAL
28 November 2014,Residents & Visitor Services,BIKEABILITY MATERIALS,253.96,BICYCLE SHOPS/SALES/SERVICE,GENERAL RETAIL AND WHOLESALE
28 November 2014,Financial Services - Children,WWW.TORBAY.GOV.UK,10.00,GOV'T SERV - DEFAULT,STATUTORY BODIES
28 November 2014,"Children, Schools & Communities",PREMIER INN44521180,61.00,PREMIER TRAVEL INNS,HOTELS AND ACCOMMODATION
01 December 2014,"Children, Schools & Communities",ASDA HOME SHOPPING,61.73,GROCERY STORES,GENERAL RETAIL AND WHOLESALE
01 December 2014,Residents & Visitor Services,WWW.TTS-GROUPS.CO.UK,12.48,STATIONERY STORES,OFFICE STATIONERY EQUIPMENT AND SUPPLIES
01 December 2014,Residents & Visitor Services,TESCO - PLO,33.25,MISC SPECIALITY RETAIL,GENERAL RETAIL AND WHOLESALE
01 December 2014,Residents & Visitor Services,TESCO - Bigjigs Toys,11.98,MISC SPECIALITY RETAIL,GENERAL RETAIL AND WHOLESALE
01 December 2014,Residents & Visitor Services,WWW.SENSORYEDUCATION.C,19.91,"HOBBY, TOY & GAME SHOPS",GENERAL RETAIL AND WHOLESALE
01 December 2014,Residents & Visitor Services,FIRST GREATER WESTERN,5.90,PASSENGER RAILWAYS,TRAVEL
02 December 2014,Residents & Visitor Services,Amazon *Mktplce EU-UK,6.56,MISC SPECIALITY RETAIL,GENERAL RETAIL AND WHOLESALE
02 December 2014,Information Services,FACEBOOK 93YA27WDT2,43.48,ADVERTISING SERVICES,PRINT AND ADVERTISING
02 December 2014,Safeguarding & Wellbeing,PREMIER INN44010775,153.50,PREMIER TRAVEL INNS,HOTELS AND ACCOMMODATION
02 December 2014,Safeguarding & Wellbeing,PREMIER INN44011625,85.00,PREMIER TRAVEL INNS,HOTELS AND ACCOMMODATION
02 December 2014,Safeguarding & Wellbeing,PREMIER INN44011950,148.00,PREMIER TRAVEL INNS,HOTELS AND ACCOMMODATION
02 December 2014,Safeguarding & Wellbeing,PREMIER INN44521025,76.75,PREMIER TRAVEL INNS,HOTELS AND ACCOMMODATION
03 December 2014,Residents & Visitor Services,BOOKER LIMITED PAIGNTON,108.96,CATERERS,CATERING AND CATERING SUPPLIES
03 December 2014,Residents & Visitor Services,FGW WEBSALES,21.50,PASSENGER RAILWAYS,TRAVEL
03 December 2014,Information Services,APPLE ONLINE STORE GBP,"1,024.00",ELECTRONICS SALES,GENERAL RETAIL AND WHOLESALE
03 December 2014,Information Services,FACEBOOK ZVYD87SDT2,99.71,ADVERTISING SERVICES,PRINT AND ADVERTISING
03 December 2014,Financial Services - Children,ARGOS RETAIL GROUP,86.50,DISCOUNT STORES,GENERAL RETAIL AND WHOLESALE
03 December 2014,Financial Services - Children,ARGOS RETAIL GROUP,81.81,DISCOUNT STORES,GENERAL RETAIL AND WHOLESALE
03 December 2014,"Children, Schools & Communities",NATIONAL EXPRESS LIMITED,41.70,BUS LINES/CHARTER/TOUR,TRAVEL
03 December 2014,"Children, Schools & Communities",WWW.FLYBE.COFXCJNM,181.57,"AIRLINES, AIR CARRIERS",TRAVEL
03 December 2014,Safeguarding & Wellbeing,TRAVELODGE WEBSITE,73.00,TRAVELODGE,HOTELS AND ACCOMMODATION
03 December 2014,Safeguarding & Wellbeing,TRAVELODGE WEBSITE,73.00,TRAVELODGE,HOTELS AND ACCOMMODATION
04 December 2014,Residents & Visitor Services,Amazon *Mktplce EU-UK,16.90,BOOK STORES,BOOKS AND PERIODICALS
04 December 2014,Commercial Services,FGW WEBSALES,180.70,PASSENGER RAILWAYS,TRAVEL
04 December 2014,Residents & Visitor Services,FGW WEBSALES,150.00,PASSENGER RAILWAYS,TRAVEL
04 December 2014,Information Services,FACEBOOK DR3M87SDT2,104.11,ADVERTISING SERVICES,PRINT AND ADVERTISING
04 December 2014,Financial Services - Children,TRAVELODGE WEBSITE,41.00,TRAVELODGE,HOTELS AND ACCOMMODATION
04 December 2014,Financial Services - Children,ARGOS RETAIL GROUP,396.89,DISCOUNT STORES,GENERAL RETAIL AND WHOLESALE
04 December 2014,Spatial Planning,PREMIER INN44018255,89.50,PREMIER TRAVEL INNS,HOTELS AND ACCOMMODATION
05 December 2014,Residents & Visitor Services,Amazon EU,12.08,OTHER DIRECT MARKETERS,MAIL ORDER / DIRECT SELLING
05 December 2014,Residents & Visitor Services,Amazon EU,21.00,OTHER DIRECT MARKETERS,MAIL ORDER / DIRECT SELLING
05 December 2014,Residents & Visitor Services,Amazon EU,9.99,OTHER DIRECT MARKETERS,MAIL ORDER / DIRECT SELLING
05 December 2014,Residents & Visitor Services,Amazon EU,9.99,OTHER DIRECT MARKETERS,MAIL ORDER / DIRECT SELLING
05 December 2014,Residents & Visitor Services,FGW WEBSALES,191.70,PASSENGER RAILWAYS,TRAVEL
05 December 2014,Information Services,Amazon *Mktplce EU-UK,52.99,MISC SPECIALITY RETAIL,GENERAL RETAIL AND WHOLESALE
05 December 2014,Information Services,Amazon *Mktplce EU-UK,29.95,BOOK STORES,BOOKS AND PERIODICALS
05 December 2014,Information Services,APPLE ONLINE STORE GBP,25.00,ELECTRONICS SALES,GENERAL RETAIL AND WHOLESALE
06 December 2014,Information Services,FACEBOOK CVSV47JDT2,157.95,ADVERTISING SERVICES,PRINT AND ADVERTISING
08 December 2014,"Children, Schools & Communities",ASDA HOME SHOPPING,54.16,GROCERY STORES,GENERAL RETAIL AND WHOLESALE
08 December 2014,Commercial Services,FIRST GTR WESTERN,239.00,PASSENGER RAILWAYS,TRAVEL
08 December 2014,Safeguarding & Wellbeing,LADY ANNE MIDDELTONS HTL,85.00,HOTELS/MOTELS/RESORTS,HOTELS AND ACCOMMODATION
08 December 2014,Safeguarding & Wellbeing,PREMIER INN44521665,90.00,PREMIER TRAVEL INNS,HOTELS AND ACCOMMODATION
09 December 2014,Tor Bay Harbour Authority,THISTLE BRIGHTON HTL,99.00,HOTELS/MOTELS/RESORTS,HOTELS AND ACCOMMODATION
09 December 2014,Procurrment Team,WP-CII TRAINING TECH,144.00,SCHOOLS - DEFAULT,TRAINING AND EDUCATIONAL
09 December 2014,Residents & Visitor Services,FGW WEBSALES,31.60,PASSENGER RAILWAYS,TRAVEL
09 December 2014,Financial Services - Children,NATIONAL EXPRESS LIMITED,71.00,BUS LINES/CHARTER/TOUR,TRAVEL
09 December 2014,Safeguarding & Wellbeing,PREMIER INN44010775,68.00,PREMIER TRAVEL INNS,HOTELS AND ACCOMMODATION
10 December 2014,Place,FGW NEWTNA,6.10,AUTO PARKING LOTS/GARAGES,TRAVEL
10 December 2014,Place,FGW TICKET OFFICE,15.40,PASSENGER RAILWAYS,TRAVEL
10 December 2014,Residents & Visitor Services,Amazon EU,16.98,OTHER DIRECT MARKETERS,MAIL ORDER / DIRECT SELLING
10 December 2014,Residents & Visitor Services,PAYPAL *HUBMAKER,101.30,BUSINESS SERVICES - DEFAULT,MISCELLANEOUS INDUSTRIAL/COMMERCIAL SUPPLIES
10 December 2014,Safeguarding & Wellbeing,WWW.FLYBE.CODTGN1G,292.76,"AIRLINES, AIR CARRIERS",TRAVEL
10 December 2014,Safeguarding & Wellbeing,THE GRANGE HOTEL,63.00,HOTELS/MOTELS/RESORTS,HOTELS AND ACCOMMODATION
10 December 2014,Safeguarding & Wellbeing,WWW.FLYBE.CODTBY5E,252.59,"AIRLINES, AIR CARRIERS",TRAVEL
11 December 2014,Residents & Visitor Services,Amazon EU,6.74,OTHER DIRECT MARKETERS,MAIL ORDER / DIRECT SELLING
11 December 2014,Residents & Visitor Services,Amazon EU,8.00,OTHER DIRECT MARKETERS,MAIL ORDER / DIRECT SELLING
11 December 2014,Tor Bay Harbour Authority,WWW.FLYBE.COEV4P2R,125.96,"AIRLINES, AIR CARRIERS",TRAVEL
11 December 2014,Residents & Visitor Services,PAYPAL *DJMMUSICLTD,24.66,PROFESSIONAL SERVICES - DEF,PROFESSIONAL SERVICES
11 December 2014,Information Services,DRI *PINNACLESY,99.90,COMPUTER SOFTWARE STORES,COMPUTER EQUIPMENT & SERVICES
11 December 2014,Safeguarding & Wellbeing,PREMIER INN44010775,-73.75,PREMIER TRAVEL INNS,HOTELS AND ACCOMMODATION
12 December 2014,Residents & Visitor Services,Amazon EU,9.00,OTHER DIRECT MARKETERS,MAIL ORDER / DIRECT SELLING
12 December 2014,Safeguarding & Wellbeing,ADAMS MARK,126.00,ADAMS MARK,HOTELS AND ACCOMMODATION
12 December 2014,Safeguarding & Wellbeing,LASTMINUTE.COM,521.95,TRAVEL AGENCIES,TRAVEL
13 December 2014,"Children, Schools & Communities",NATIONAL EXPRESS LIMITED,37.30,BUS LINES/CHARTER/TOUR,TRAVEL
15 December 2014,"Children, Schools & Communities",ASDA HOME SHOPPING,62.07,GROCERY STORES,GENERAL RETAIL AND WHOLESALE
15 December 2014,Residents & Visitor Services,JOSEF WEINBERGER LTD,630.64,MUSIC STORES/PIANOS,GENERAL RETAIL AND WHOLESALE
15 December 2014,"Children, Schools & Communities",WWW.HIGHSPEEDTRAINING.,24.00,BUSINESS/SECRETARIAL SCHOOL,TRAINING AND EDUCATIONAL
15 December 2014,Residents & Visitor Services,FGW WEBSALES,-11.50,PASSENGER RAILWAYS,TRAVEL
15 December 2014,"Children, Schools & Communities",PREMIER INN 44536565,167.00,RESTAURANTS,RESTAURANTS AND BARS
16 December 2014,"Children, Schools & Communities",HTTP://SHOP.ICAN.ORG.U,96.47,CHARITABLE/SOC SERVICE ORGS,CLUBS/ASSOCIATIONS/ORGANISATIONS
16 December 2014,Adults,WWW.FLYBE.COBHM8PN,79.99,"AIRLINES, AIR CARRIERS",TRAVEL
16 December 2014,Residents & Visitor Services,BOOKER LIMITED PAIGNTON,252.79,CATERERS,CATERING AND CATERING SUPPLIES
16 December 2014,Commercial Services,Amazon EU,155.41,OTHER DIRECT MARKETERS,MAIL ORDER / DIRECT SELLING
16 December 2014,Residents & Visitor Services,WWW.FLYBE.COB7YF79,228.64,"AIRLINES, AIR CARRIERS",TRAVEL
17 December 2014,Information Services,PAYPAL *LEXABLE LTD,274.80,COMPUTER PROGRAM/SYS DESIGN,COMPUTER EQUIPMENT & SERVICES
17 December 2014,Information Services,DRI WWW ELEMENT5 INFO,153.51,COMPUTER PROGRAM/SYS DESIGN,COMPUTER EQUIPMENT & SERVICES
17 December 2014,Information Services,DRI WWW ELEMENT5 INFO,113.17,COMPUTER PROGRAM/SYS DESIGN,COMPUTER EQUIPMENT & SERVICES
17 December 2014,Information Services,DRI *NUANCE,549.99,COMPUTER SOFTWARE STORES,COMPUTER EQUIPMENT & SERVICES
17 December 2014,Spatial Planning,TRAINLINE.COM,332.01,PASSENGER RAILWAYS,TRAVEL
18 December 2014,Residents & Visitor Services,Amazon EU,15.94,OTHER DIRECT MARKETERS,MAIL ORDER / DIRECT SELLING
18 December 2014,Community Safety,MILL AUTO SUPPLIES COS,53.94,AUTOMOTIVE PARTS STORES,VEHICLES SERVICING AND SPARES
18 December 2014,Commercial Services,Amazon EU,155.41,OTHER DIRECT MARKETERS,MAIL ORDER / DIRECT SELLING
18 December 2014,Financial Services - Corporate,THE TRAINLINE.COM,129.03,PASSENGER RAILWAYS,TRAVEL
18 December 2014,Information Services,WWW.FLYBE.COCM146Z,94.99,"AIRLINES, AIR CARRIERS",TRAVEL
18 December 2014,Information Services,Amazon *Mktplce EU-UK,39.98,BOOK STORES,BOOKS AND PERIODICALS
18 December 2014,Information Services,PREMIER INN44521690,45.75,PREMIER TRAVEL INNS,HOTELS AND ACCOMMODATION
18 December 2014,Safeguarding & Wellbeing,RAMADA PLAZA WREXHAM,80.00,HOTELS/MOTELS/RESORTS,HOTELS AND ACCOMMODATION
19 December 2014,Community Safety,WWW.FLYBE.COC5SHQ1,199.08,"AIRLINES, AIR CARRIERS",TRAVEL
19 December 2014,Residents & Visitor Services,FGW WEBSALES,-98.00,PASSENGER RAILWAYS,TRAVEL
19 December 2014,"Children, Schools & Communities",RICHARDSON GROUP HOTELS,55.00,HOTELS/MOTELS/RESORTS,HOTELS AND ACCOMMODATION
19 December 2014,"Children, Schools & Communities",RICHARDSON GROUP HOTELS,111.65,HOTELS/MOTELS/RESORTS,HOTELS AND ACCOMMODATION
20 December 2014,Information Services,Amazon *Mktplce EU-UK,133.59,MISC SPECIALITY RETAIL,GENERAL RETAIL AND WHOLESALE
22 December 2014,Community Safety,TRAINLINE.COM,47.43,PASSENGER RAILWAYS,TRAVEL
22 December 2014,Residents & Visitor Services,1&1 INTERNET LIMITED,35.96,ELECTRONIC COMMERCE/INFO. SERVI,MISCELLANEOUS
22 December 2014,Commercial Services,WWW.PMGLTD.CO.UK,462.00,BUSINESS SERVICES - DEFAULT,MISCELLANEOUS INDUSTRIAL/COMMERCIAL SUPPLIES
22 December 2014,Financial Services - Children,PREMIER INN44014545,46.00,PREMIER TRAVEL INNS,HOTELS AND ACCOMMODATION
23 December 2014,Tor Bay Harbour Authority,EBAY EUROPE SARL,10.01,BUSINESS SERVICES - DEFAULT,MISCELLANEOUS INDUSTRIAL/COMMERCIAL SUPPLIES
23 December 2014,Tor Bay Harbour Authority,THE GEORGE HOTEL WEB,108.10,HOTELS/MOTELS/RESORTS,HOTELS AND ACCOMMODATION
23 December 2014,Commercial Services,POST OFFICE COUNTER,67.45,POSTAGE STAMPS,MAIL AND COURIER SERVICES
24 December 2014,Spatial Planning,WWW.CARTRIDGESAVE.CO.U,113.95,STATIONERY STORES,OFFICE STATIONERY EQUIPMENT AND SUPPLIES
24 December 2014,"Children, Schools & Communities",NATIONAL EXPRESS LIMITED,46.90,BUS LINES/CHARTER/TOUR,TRAVEL
30 December 2014,Information Services,WWW.FLYBE.CODWCSTR,84.99,"AIRLINES, AIR CARRIERS",TRAVEL
30 December 2014,Financial Services - Children,TRAVELODGE WEBSITE,110.00,TRAVELODGE,HOTELS AND ACCOMMODATION
30 December 2014,Financial Services - Children,CROHAM HOTEL,32.00,HOTELS/MOTELS/RESORTS,HOTELS AND ACCOMMODATION
02 January 2015,Financial Services - Children,TRAVELODGE WEBSITE,-54.00,TRAVELODGE,HOTELS AND ACCOMMODATION
02 January 2015,Financial Services - Children,TRAVELODGE WEBSITE,-54.00,TRAVELODGE,HOTELS AND ACCOMMODATION
04 January 2015,Residents & Visitor Services,Amazon EU,8.23,OTHER DIRECT MARKETERS,MAIL ORDER / DIRECT SELLING
05 January 2015,"Children, Schools & Communities",ASDA HOME SHOPPING,52.21,GROCERY STORES,GENERAL RETAIL AND WHOLESALE
05 January 2015,"Children, Schools & Communities",RICHARDSON GROUP HOTELS,-55.00,HOTELS/MOTELS/RESORTS,HOTELS AND ACCOMMODATION
